[Event "Silver Lake Festival 2022"]
[Site "Veliko Gradiste"]
[Date "2022.06.19"]
[Round "1.6"]
[White "Ramoutar, Alan-Safar"]
[Black "Poupalos, Nikolaos"]
[Result "1-0"]
[ECO "B43"]
[WhiteElo "2477"]
[BlackElo "2107"]
[Annotator "TA"]
[PlyCount "41"]
[EventDate "2022.06.16"]
[EventType "swiss"]
[EventCountry "SRB"]
[SourceTitle "playchess.com"]
[Source "ChessBase"]
[SourceQuality "1"]
[TimeControl "5400+30"]

{[%evp 17,41,0,0,4,29,27,37,41,159,139,210,183,206,214,335,324,635,629,552,374,466,459,1526,734,718,702]} 1. e4 {[%emt 0:00:04]} c5 {[%emt 0:00:07]} 2. Nc3 {[%emt 0:00:08]} a6 {[%emt 0:00:18]} 3. g3 {[%emt 0:00:20]} b5 {[%emt 0:00:16]} 4. Bg2 {[%emt 0:00:25]} Bb7 {[%emt 0:00:10]} 5. Nge2 {[%emt 0:00:35]} e6 {[%emt 0:00:42]} 6. d4 {[%emt 0:01:27]} cxd4 {[%emt 0:04:11]} 7. Nxd4 {[%emt 0:00:09]} Nf6 {[%emt 0:05:57]} 8. a3 {[%emt 0:01:16][%cal Ba2a3,Ba3a4][%mdl 32]} d6 {[%emt 0:07:39]} 9. O-O {[%emt 0:00:22]} Qc7 {[%emt 0:01:18]} 10. Re1 {[%emt 0:02:35] Threatening a4. B43: Sicilian: Kan Variation: 5 Nc3.} Be7 {[%emt 0:02:33]} 11. a4 {[%emt 0:03:56]} b4 {[%emt 0:06:38]} 12. Na2 {[%emt 0:03:17] White is slightly better.} d5 {[%emt 0:17:44]} (12... O-O $14) 13. exd5 $1 $16 {[%emt 1:22:26]} Bxd5 {[%emt 0:49:27] [#]} (13... Nxd5 $16 {might work better.} 14. Nxe6 fxe6) 14. Nf5 $146 {[%emt 0:00:30][%mdl 512]} ({Predecessor:} 14. Bxd5 Nxd5 15. Nf5 Kf8 16. Nxe7 Qxe7 17. c4 bxc3 18. Nxc3 Nxc3 19. bxc3 Kg8 20. Qf3 {1-0 (32) Jazdanovs,A (2188)-Solomka,N (1895) Riga 2018}) 14... exf5 {[%emt 0:00:30]} (14... Bxg2 $2 15. Nxg7+ Kf8 16. Bh6) 15. Bxd5 {[%emt 0:00:30]} Nxd5 {[%emt 0:00:30]} (15... Ra7 $142 16. Be3 (16. Bf4 Qc8 $18) 16... O-O 17. Bxa7 Qxa7) 16. Qxd5 {[%emt 0:00:30]} Nc6 $2 {[%emt 0:00:30] [#]} (16... Ra7 17. Be3 (17. Qxf5 O-O $16) (17. Bf4 Qb7 $18) 17... Rb7) 17. Nxb4 $1 {[%emt 0:00:30][%mdl 512]} Rc8 {[%emt 0:00:30]} (17... O-O 18. Nxc6) 18. Bd2 {[%emt 0:00:30]} Qd7 {[%emt 0:00:30]} 19. Rad1 {[%emt 0:00:30] White is clearly winning.} Qb7 {[%emt 0:00:30] [#]} (19... Qxd5 $142 20. Nxd5 Rd8) 20. Nxc6 (20. Rxe7+ $142 $1 {[%mdl 512]} Qxe7 21. Nxc6) 20... Qxc6 21. Bb4 {White took control after the opening.  Weighted Error Value: White=0.18 (very precise) /Black=0.81} 1-0

[Event "Silver Lake Festival 2022"]
[Site "Veliko Gradiste"]
[Date "2022.06.19"]
[Round "1.7"]
[White "Thrish Karthik"]
[Black "Damljanovic, Branko"]
[Result "0-1"]
[ECO "B30"]
[WhiteElo "2095"]
[BlackElo "2469"]
[Annotator "TA"]
[PlyCount "104"]
[EventDate "2022.06.16"]
[EventType "swiss"]
[EventCountry "SRB"]
[SourceTitle "playchess.com"]
[Source "ChessBase"]
[SourceQuality "1"]
[TimeControl "5400+30"]

{[%evp 10,104,14,20,38,-31,6,-42,0,10,18,19,36,-11,-11,-12,-13,-17,-20,-16,-28,-66,-67,-63,-37,-66,-45,-63,-62,-69,-68,-64,-60,-91,-95,-96,-87,-120,-124,-126,-135,-135,-136,-159,-170,-149,-114,-127,-111,-111,-86,-106,-105,-442,-450,-447,-433,-535,-534,-527,-487,-466,-389,-512,-363,-1121,-1084,-1589,-1493,-1493,-1255,-1058,-992,-1564,-1431,-1218,-1013,-422,-422,-2327,-1678,-29961,-29958,-29948,-12833,-5233,-5197,-29966,-29966,-29960,-12819,-7662,-6424,-29972,-29971,-6211,-3655]} 1. e4 {[%emt 0:00:03]} c5 {[%emt 0:00:40]} 2. Nc3 {[%emt 1:31:27]} Nc6 {[%emt 0:00:49]} 3. Bb5 {[%emt 0:00:00]} Nd4 {[%emt 0:00:15]} 4. Nf3 {[%emt 0:00:00]} e6 {[%emt 0:00:28]} 5. O-O {[%emt 0:00:00]} a6 {[%emt 0:07:40]} 6. Bd3 {[%emt 0:00:00]} Nc6 {[%emt 0:05:33] B30: Sicilian: 2...Nc6 3 Bb5, lines without ...g6.} 7. Re1 {[%emt 0:00:00] 7.e5 is a critical line.} (7. Be2 $14) 7... d6 {[%emt 0:02:32]} (7... g5 $5 {[%cal Rg5g4]} 8. g3 d6 $11) 8. b3 {[%emt 0:00:00]} (8. Bc4 $11) 8... Be7 {[%emt 0:00:27]} (8... g5 $15 9. g3 Bg7) 9. Bb2 $11 {[%emt 0:00:00][%cal Oc3d5]} e5 {[%emt 0:09:56]} 10. Nd5 {[%emt 0:00:00]} Nf6 {[%emt 0:00:09] [#]} 11. Nxf6+ $146 {[%emt 0:00:00]} (11. c3 $14 {was preferrable.}) ({Predecessor:} 11. c3 O-O 12. Nxe7+ Qxe7 13. h3 Nh5 14. Bf1 Nf4 15. d4 Qf6 16. Kh2 g5 17. d5 {0-1 (61) Mikes,J (2349)-Babula,V (2576) Usti nad Labem 2022}) 11... Bxf6 {[%emt 0:00:02]} 12. Bc4 {[%emt 0:00:00]} O-O {[%emt 0:00:10]} 13. h3 {[%emt 0:00:00]} Rb8 {[%emt 0:00:13]} 14. c3 {[%emt 0:00:00]} b5 {[%emt 0:04:16]} 15. Bd5 {[%emt 0:00:00]} Ne7 {[%emt 0:00:06]} 16. c4 {[%emt 0:00:00]} g6 {[%emt 0:02:54]} 17. Qc2 {[%emt 0:00:00]} Bg7 {[%emt 0:00:34]} 18. b4 {[%emt 0:00:00]} Nxd5 {[%emt 0:01:24]} 19. cxd5 {[%emt 0:00:00]} cxb4 {[%emt 0:08:15]} 20. d4 {[%emt 0:00:00][%cal Rd4e5]} f6 {[%emt 0:00:42]} 21. Rac1 {[%emt 0:00:00]} Bh6 {[%emt 0:01:11]} 22. Rb1 {[%emt 0:00:00]} Bd7 {[%emt 0:04:45]} 23. Qb3 {[%emt 0:00:00]} a5 {[%emt 0:00:30]} 24. Bc1 {[%emt 0:00:00] [#]} Bxc1 {[%emt 0:00:23]} 25. Rbxc1 {[%emt 0:00:00] [#]} Qb6 $1 {[%emt 0:03:36]} 26. Rc2 {[%emt 0:03:27]} Rbc8 {[%emt 0:04:39]} ({And not} 26... exd4 27. Qb2 $15) 27. Rec1 {[%emt 0:01:10]} Kg7 {[%emt 0:10:07]} 28. Qe3 {[%emt 0:03:18]} Rxc2 {[%emt 0:05:10]} 29. Rxc2 {[%emt 0:00:13]} Rc8 {[%emt 0:00:30]} ({Don't take} 29... f5 30. exf5 a4 31. dxe5 Qxe3 32. f6+ (32. fxe3 Bxf5 33. Rc7+ Kh6 $14) 32... Kg8 33. fxe3 $16) 30. Rxc8 {[%emt 0:04:00]} Bxc8 {[%emt 0:00:01]} 31. dxe5 $2 {[%emt 0:00:04][%mdl 8192] Loses the game.} (31. Qc1 $17 {is a better chance.} Bd7 32. dxe5 dxe5 33. h4) 31... Qxe3 $19 {[%emt 0:00:08]} 32. fxe3 {[%emt 0:00:09]} dxe5 $17 {[%emt 0:00:24][%mdl 4096] Endgame KB-KN} 33. Nd2 {[%emt 0:00:41]} a4 {[%emt 0:01:33] Against Nb3. aiming for ...f5.} 34. Kf2 {[%emt 0:01:19]} Kf7 {[%emt 0:00:03]} 35. Ke2 {[%emt 0:00:59]} Ke7 {[%emt 0:00:02]} 36. Kd3 {[%emt 0:01:03]} Kd6 {[%emt 0:00:07]} 37. g4 $2 {[%emt 0:00:35]} (37. Kc2) 37... h5 $19 {[%emt 0:00:35]} 38. gxh5 {[%emt 0:00:16]} gxh5 {[%emt 0:00:02]} 39. h4 {[%emt 0:00:06]} Bh3 {[%emt 0:00:22] White must now prevent ...Bg2.} 40. Kc2 {[%emt 0:01:07]} Kc5 {[%emt 0:01:47]} 41. Kd3 {[%emt 0:00:27]} Bg2 {[%emt 0:04:27][%cal Of6f5] Hoping for ...f5!} 42. Kc2 {[%emt 0:00:31]} f5 {[%emt 0:02:06]} 43. exf5 {[%emt 0:00:07]} Bxd5 {[%emt 0:00:03]} 44. Kb2 {[%emt 0:00:27]} (44. Kb1 $142) 44... e4 {[%emt 0:03:23]} 45. Kb1 {[%emt 0:00:58]} Kd6 {[%emt 0:00:15]} 46. Nf1 {[%emt 0:00:13]} Ke5 {[%emt 0:00:02]} (46... Bf7 $142 47. Ka1 Ke5 48. Ng3 a3 49. f6 b3 50. axb3 Bxb3 51. Ne2 Bc4 52. f7 Bxf7 53. Nd4 Bc4 54. Nc2 Kf5 55. Nb4 Kg4 56. Na6 Kf3 57. Nb4 Kxe3 58. Nc2+ Kf4 59. Nb4 e3 60. Kb1 e2 61. Nc2 Bd3 62. Kc1 Bxc2 63. Kxc2 e1=Q 64. Kb3 Qc1 65. Kb4 a2 66. Kxb5 a1=Q 67. Kb4 Qcc3+ 68. Kb5 Qaa5#) 47. Ng3 {[%emt 0:00:11]} Bf7 {[%emt 0:00:01]} 48. Kb2 {[%emt 0:00:33]} a3+ {[%emt 0:01:34]} 49. Kb1 {[%emt 0:00:49]} b3 {[%emt 0:00:39]} 50. axb3 {[%emt 0:00:10]} Bxb3 {[%emt 0:00:05] ( -> ...Bc4)} 51. Ne2 {[%emt 0:00:57]} Bc4 {[%emt 0:01:11]} 52. Nd4 {[%emt 0:00:34]} b4 {[%emt 0:02:11] Weighted Error Value: White=1.16/Black=0.32} 0-1

[Event "Silver Lake Festival 2022"]
[Site "Veliko Gradiste"]
[Date "2022.06.19"]
[Round "1.8"]
[White "Mohammad Nubairshah Shaikh"]
[Black "Papaioannou, Dimitrios"]
[Result "1-0"]
[ECO "E60"]
[WhiteElo "2443"]
[BlackElo "2078"]
[Annotator "TA"]
[PlyCount "75"]
[EventDate "2022.06.16"]
[EventType "swiss"]
[EventCountry "SRB"]
[SourceTitle "playchess.com"]
[Source "ChessBase"]
[SourceQuality "1"]
[TimeControl "5400+30"]

{[%evp 9,75,4,4,12,38,0,5,0,0,0,0,0,0,0,0,0,37,45,38,36,22,31,30,32,54,58,59,62,76,77,139,148,145,150,163,139,184,179,180,187,210,191,252,254,302,305,396,343,457,368,454,399,437,444,556,542,674,667,664,691,708,684,826,655,1715,1600,29990,29991]} 1. Nf3 {[%emt 0:00:05]} Nf6 {[%emt 0:02:50]} 2. c4 {[%emt 0:00:03]} g6 {[%emt 0:00:51]} 3. b3 {[%emt 0:00:12]} Bg7 {[%emt 0:01:12]} 4. Bb2 {[%emt 0:00:02]} O-O {[%emt 0:00:57]} 5. d4 {[%emt 0:01:00][%cal Bd2d4,Bd4d5][%mdl 32]} d6 {[%emt 0:02:31]} 6. Nc3 {[%emt 0:00:05] E60: King's Indian: Unusual lines and Fianchetto Variation without Nc3.} Bf5 {[%emt 0:02:06][%cal Oe7e5]} 7. e3 {[%emt 0:15:31]} Nc6 {[%emt 0:03:00]} 8. Be2 {[%emt 0:03:02] The position is equal.} e5 {[%emt 0:03:08]} 9. d5 {[%emt 0:03:57]} Nb4 {[%emt 0:00:40] Threatens to win with ...Nc2+.} 10. O-O {[%emt 0:00:19]} a5 {[%emt 0:01:55]} 11. a3 {[%emt 0:17:07]} Na6 {[%emt 0:01:09] [#]} 12. Nh4 $146 {[%emt 0:00:09]} ({Predecessor:} 12. Re1 Re8 13. Bf1 Nc5 14. b4 Nce4 15. Nd2 Nxf2 16. Kxf2 Ng4+ 17. Kg1 Qh4 18. h3 {0-1 (29) Gawehns,K (2476)-Kerekes,J (2313) IECC email 2001}) 12... Nxd5 {[%emt 0:15:12]} 13. Nxf5 {[%emt 0:00:35]} (13. Qxd5 c6 14. Qd2 Qxh4 $17) 13... Nxc3 {[%emt 0:01:50]} 14. Bxc3 {[%emt 0:00:02]} gxf5 {[%emt 0:00:01]} 15. Bxa5 {[%emt 0:00:06]} e4 {[%emt 0:00:33]} 16. Ra2 {[%emt 0:03:53]} Kh8 {[%emt 0:09:03]} 17. g3 {[%emt 0:15:22]} Nc5 {[%emt 0:02:37]} 18. Bb4 {[%emt 0:03:20]} Nd7 {[%emt 0:05:02]} 19. Qd5 {[%emt 0:07:42][%csl LRb7,LRf5] White now steadily converts the win.} Be5 {[%emt 0:04:46]} (19... Ne5 $142) 20. f4 $16 {[%emt 0:02:02]} (20. Qxb7 $6 c5 21. Be1 Rb8 $16) 20... exf3 {[%emt 0:02:06]} 21. Qxf3 {[%emt 0:00:14]} Rg8 {[%emt 0:01:22]} 22. Bd3 {[%emt 0:01:51]} ({Don't take} 22. Qxf5 $6 Bxg3 23. Kh1 (23. hxg3 $2 Rxg3+ 24. Kf2 Qh4 $19) 23... Be5 $14) (22. Qxb7 $6 Rb8 23. Qg2 Qg5 $14) 22... Qg5 {[%emt 0:01:27]} 23. Bxf5 {[%emt 0:04:07]} ({Don't play} 23. Qxf5 Qh6 $16) 23... Nf6 {[%emt 0:01:06]} 24. a4 {[%emt 0:03:32]} Rg7 {[%emt 0:03:01]} 25. Rg2 {[%emt 0:00:39]} Rag8 {[%emt 0:00:57]} (25... c6 $142 26. Bd2 Ng8) 26. Bd2 $18 {[%emt 0:00:37] This bishop pair is nice.} Ne8 {[%emt 0:08:23]} 27. Qxb7 {[%emt 0:00:41]} Bc3 {[%emt 0:05:06]} 28. Bc1 {[%emt 0:01:04]} ({Resist} 28. Bxc3 Qxe3+ 29. Rgf2 Qxc3 $18) 28... Nf6 {[%emt 0:03:09]} 29. Qf3 {[%emt 0:01:43]} Ne8 {[%emt 0:00:29]} 30. Kh1 {[%emt 0:02:07]} Qe7 {[%emt 0:00:49]} 31. e4 {[%emt 0:02:35][%cal Be3e4,Be4d5][%mdl 32]} Qf6 {[%emt 0:01:35]} 32. b4 {[%emt 0:01:09]} d5 {[%emt 0:01:26]} 33. exd5 {[%emt 0:00:46]} Nd6 {[%emt 0:00:58]} 34. Rc2 {[%emt 0:00:52]} Be5 {[%emt 0:00:26]} 35. Bd3 {[%emt 0:00:42]} Qe7 {[%emt 0:01:53]} 36. Re2 {[%emt 0:00:41]} Rxg3 {[%emt 0:00:21]} 37. hxg3 {[%emt 0:00:10] [#] Hoping for Qh5.} Rxg3 {[%emt 0:00:06]} 38. Qxg3 {[%emt 0:00:16] Weighted Error Value: White=0.13 (very precise) /Black=0.57} 1-0

[Event "Silver Lake Festival 2022"]
[Site "Veliko Gradiste"]
[Date "2022.06.19"]
[Round "1.9"]
[White "Tisma, Ivan"]
[Black "Radovanovic, Nikola"]
[Result "0-1"]
[ECO "A24"]
[WhiteElo "2057"]
[BlackElo "2423"]
[Annotator "TA"]
[PlyCount "84"]
[EventDate "2022.06.16"]
[EventType "swiss"]
[EventCountry "SRB"]
[SourceTitle "playchess.com"]
[Source "ChessBase"]
[SourceQuality "1"]
[TimeControl "5400+30"]

{[%evp 15,84,4,14,4,7,0,0,-31,-34,-37,-14,-65,-72,-64,-64,-85,-80,-121,-121,-123,-103,-359,-359,-374,-355,-322,-341,-750,-735,-1108,-956,-877,-882,-1115,-648,-1105,-1066,-1106,-1088,-1155,-1122,-978,-871,-1081,-1087,-982,-978,-1141,-1111,-979,-608,-602,-604,-595,-610,-794,-794,-1110,-1118,-1088,-1070,-899,-916,-909,-877,-1920,-1837,-1766,-1640,-1647,-1052]} 1. c4 {[%emt 0:00:47]} Nf6 {[%emt 0:01:08]} 2. Nc3 {[%emt 0:00:35]} g6 {[%emt 0:01:12]} 3. Nf3 {[%emt 0:00:28]} Bg7 {[%emt 0:00:27]} 4. g3 {[%emt 0:00:15]} O-O {[%emt 0:00:21]} 5. Bg2 {[%emt 0:00:14]} d6 {[%emt 0:03:07]} 6. O-O {[%emt 0:00:29]} e5 {[%emt 0:00:22]} 7. d3 {[%emt 0:00:27]} c6 {[%emt 0:01:30]} 8. Rb1 {[%emt 0:00:27]} Re8 {[%emt 0:02:00]} 9. Nd2 {[%emt 0:01:51] A24: English Opening vs King's Indian: Lines without ...Nc6.} d5 {[%emt 0:09:43]} 10. cxd5 {[%emt 0:00:23]} cxd5 {[%emt 0:00:36]} 11. b4 {[%emt 0:01:29] The position is equal.} Be6 {[%emt 0:04:15] [#]} 12. Na4 $146 {[%emt 0:07:29]} ({Predecessor:} 12. Nb3 Nbd7 13. Bg5 h6 14. Bd2 b6 15. Rc1 a6 16. a4 Ra7 17. a5 b5 18. Nc5 Nxc5 19. bxc5 {0-1 (31) Vescovi,K-Gazikova,V (1750) Kemer 2009}) 12... b6 {[%emt 0:06:56]} 13. b5 {[%emt 0:26:50] Inhibits Nc6.} (13. Nf3 $11) 13... Nbd7 $15 {[%emt 0:04:11]} 14. Ba3 {[%emt 0:01:53]} h5 {[%emt 0:10:35]} 15. e3 {[%emt 0:20:01]} h4 {[%emt 0:01:25]} 16. Nf3 {[%emt 0:00:36]} hxg3 {[%emt 0:01:42]} 17. hxg3 {[%emt 0:00:06]} Ng4 {[%emt 0:01:14] aiming for ...e4.} 18. Bb4 $2 {[%emt 0:03:45][%mdl 8192]} (18. e4 $17 {is a better defense.}) 18... e4 $19 {[%emt 0:25:29]} 19. dxe4 {[%emt 0:31:55]} dxe4 {[%emt 0:00:20]} 20. Nd4 {[%emt 0:00:00]} Bxd4 {[%emt 0:01:43]} 21. exd4 $2 {[%emt 0:00:00]} (21. Qxd4 Qg5 22. f3 (22. Bc3 $2 Nde5 $19) 22... Qxe3+ 23. Qxe3 Nxe3 24. Rfe1 Nxg2 25. Kxg2) 21... Qg5 {[%emt 0:01:26] Black is clearly winning.} 22. Nb2 {[%emt 0:00:00]} Qh5 {[%emt 0:06:23][%csl Gg4][%cal Rh5h2] [#]} 23. Re1 {[%emt 0:00:00]} Bd5 {[%emt 0:01:34]} 24. Re3 {[%emt 0:00:00]} Qh2+ {[%emt 0:02:03]} 25. Kf1 {[%emt 0:00:00]} Nxe3+ {[%emt 0:00:15]} 26. fxe3 {[%emt 0:00:00]} Re6 {[%emt 0:01:47][%cal Be8e6,Be6f6,Bf6f5,Bf5h5,Bh5h1][%mdl 32]} 27. Be1 {[%emt 0:00:00]} Rf6+ {[%emt 0:01:17]} 28. Bf2 {[%emt 0:00:00]} Qxg3 {[%emt 0:00:29][%csl Gf6][%cal Rg3f2] [#]} 29. Qe2 {[%emt 0:00:00]} Qh2 {[%emt 0:02:45] Threatens to win with ...Rc8.} 30. Rc1 {[%emt 0:00:00]} Rf5 {[%emt 0:00:25]} 31. Qg4 {[%emt 0:00:00]} Nf6 {[%emt 0:03:27]} 32. Qh3 {[%emt 0:00:00]} Qxh3 {[%emt 0:00:13]} 33. Bxh3 {[%emt 0:00:00]} Rh5 {[%emt 0:00:10]} 34. Bc8 {[%emt 0:00:00]} Bxa2 {[%emt 0:00:40]} 35. Ba6 {[%emt 0:00:00]} Kg7 {[%emt 0:02:11]} 36. Rc3 {[%emt 0:00:00]} Rah8 {[%emt 0:00:30] Hoping for ...Rh1+.} 37. Bg3 {[%emt 0:00:00]} Rh1+ {[%emt 0:00:27]} 38. Kg2 {[%emt 0:00:00]} Rb1 {[%emt 0:00:33]} 39. Na4 {[%emt 0:00:00]} Nd5 {[%emt 0:03:06][%cal Oa2c4] And now ...Bc4! would win.} 40. Ra3 {[%emt 0:00:00]} Bb3 {[%emt 0:00:13] ( -> ...Bd1)} 41. Bb7 {[%emt 0:00:00]} Nxe3+ {[%emt 0:00:18]} 42. Kf2 {[%emt 0:00:00]} Nc4 {[%emt 0:00:29] White did not feel at home in the position after the opening.  Weighted Error Value: White=1.08/Black=0.16 (very precise)} 0-1

[Event "Silver Lake Festival 2022"]
[Site "Veliko Gradiste"]
[Date "2022.06.19"]
[Round "1.10"]
[White "Krstulovic, Alex"]
[Black "Kandjolas, Konstantin"]
[Result "1-0"]
[ECO "E97"]
[WhiteElo "2413"]
[BlackElo "2031"]
[Annotator "TA"]
[PlyCount "49"]
[EventDate "2022.06.16"]
[EventType "swiss"]
[EventCountry "SRB"]
[SourceTitle "playchess.com"]
[Source "ChessBase"]
[SourceQuality "1"]
[TimeControl "5400+30"]

{[%evp 17,49,22,49,33,54,69,71,33,104,85,104,49,113,103,102,99,183,179,381,401,408,408,329,336,424,428,424,434,433,427,6316,4920,29979,2393]} 1. d4 {[%emt 0:00:35]} Nf6 {[%emt 0:00:43]} 2. Nf3 {[%emt 0:00:05]} g6 {[%emt 0:00:36]} 3. c4 {[%emt 0:00:24]} Bg7 {[%emt 0:00:25]} 4. Nc3 {[%emt 0:00:06]} O-O {[%emt 0:00:48]} 5. e4 {[%emt 0:00:04]} d6 {[%emt 0:00:08]} 6. Be2 {[%emt 0:00:06]} e5 {[%emt 0:01:13]} 7. O-O {[%emt 0:00:06]} Nc6 {[%emt 0:00:19]} 8. d5 {[%emt 0:00:13]} Ne7 {[%emt 0:00:08]} 9. Kh1 {[%emt 1:33:21]} Nd7 {[%emt 0:22:21]} 10. g4 {[%emt 0:00:30] E97: King's Indian: Classical Main Line (6...e5 7 0-0 Nc6): 8 Be3 and 8 d5 Ne7, not 9 Ne1.} f5 {[%emt 0:03:19]} 11. gxf5 {[%emt 0:00:00]} gxf5 {[%emt 1:06:00]} 12. Rg1 {[%emt 0:00:00] [#] White is better.} f4 $146 {[%emt 0:00:30]} (12... Nf6 $14) ({Predecessor:} 12... Nc5 13. Be3 Nxe4 14. Nxe4 fxe4 15. Ng5 Nf5 16. Nxe4 Nxe3 17. fxe3 Qh4 18. Bg4 Bf5 19. Bxf5 Rxf5 {1-0 (28) Sedlak,N (2580)-Elkin,L (2159) St Petersburg 2011}) 13. Ng5 $16 {[%emt 0:00:00]} Nf6 {[%emt 0:00:00]} 14. Bh5 {[%emt 0:00:00]} ({White should try} 14. b3 $16) 14... h6 {[%emt 0:00:00]} ({Black should play} 14... Bd7 $14) 15. Ne6 {[%emt 0:00:00] White is more active.} Bxe6 {[%emt 0:00:00]} 16. dxe6 {[%emt 0:00:00]} Nxh5 {[%emt 0:00:00]} (16... c6 $16 {was necessary.}) 17. Qxh5 $18 {[%emt 0:03:30]} Rf6 {[%emt 0:00:00]} (17... Kh8 18. b3 (18. Qg4 Rg8 $16) 18... Qe8) 18. Nd5 {[%emt 0:00:00]} ({Not} 18. Qg4 Rg6 19. Qh3 Rxg1+ 20. Kxg1 Ng6 $11) 18... Nxd5 {[%emt 0:00:00]} 19. cxd5 {[%emt 0:00:00]} ({Less strong is} 19. exd5 Qe8 20. Qg4 Qf8 $18) 19... Kh7 {[%emt 0:00:00]} 20. Bd2 {[%emt 0:00:00] [#] Threatens to win with Rg2.} ({Weaker is} 20. Qg4 Qe7 21. Bd2 Rg8 $18) 20... Qe7 {[%emt 0:00:00]} 21. Rg2 {[%emt 0:00:00]} Rg8 {[%emt 0:00:00]} 22. Rag1 {[%emt 0:00:00]} Rff8 {[%emt 0:00:00]} 23. f3 {[%emt 0:00:00] And now Be1 would win.} Qe8 {[%emt 0:00:00]} (23... Bf6 $142 24. Rg6 Bg5) 24. Rg6 {[%emt 0:00:00] [#] White threatens Be1 and mate.} Qe7 {[%emt 0:00:00]} 25. Be1 {[%emt 0:00:00] Weighted Error Value: White=0.10 (very precise) /Black=0.77} 1-0

[Event "Silver Lake Festival 2022"]
[Site "Veliko Gradiste"]
[Date "2022.06.19"]
[Round "1.11"]
[White "Manish Anto Cristiano F"]
[Black "Tadic, Stefan"]
[Result "1/2-1/2"]
[ECO "A91"]
[WhiteElo "2071"]
[BlackElo "2358"]
[Annotator "TA"]
[PlyCount "93"]
[EventDate "2022.06.16"]
[EventType "swiss"]
[EventCountry "SRB"]
[SourceTitle "playchess.com"]
[Source "ChessBase"]
[SourceQuality "1"]
[TimeControl "5400+30"]

{[%evp 9,93,28,36,37,46,32,57,18,18,20,20,19,18,17,41,35,33,34,43,41,49,57,39,30,34,0,0,0,0,0,8,10,13,16,10,0,0,0,0,0,0,0,0,0,0,0,0,0,0,0,0,0,0,0,0,0,0,0,14,0,0,0,0,0,0,0,0,0,0,0,0,0,0,0,0,0,0,0,0,0,0,0,0,0,0,0]} 1. d4 {[%emt 1:31:00]} f5 {[%emt 1:31:00]} 2. c4 {[%emt 0:00:30]} e6 {[%emt 0:00:30]} 3. g3 {[%emt 0:00:30]} Nf6 {[%emt 0:00:30]} 4. Bg2 {[%emt 0:00:30]} d5 {[%emt 0:00:30]} 5. Nc3 {[%emt 0:00:30]} Be7 {[%emt 0:00:30]} 6. Nf3 {[%emt 0:00:30] A91: Classical Dutch: Early Deviations.} Ne4 {[%emt 0:00:30]} 7. O-O {[%emt 0:00:30]} Nc6 {[%emt 0:00:30]} 8. Qb3 {[%emt 0:00:30][%cal Rc4d5] [#] White is slightly better.} Na5 $146 {[%emt 0:00:30]} ({Predecessor:} 8... Nxc3 9. bxc3 O-O 10. cxd5 exd5 11. Nd2 Be6 12. Qxb7 Qd7 13. Qa6 f4 14. Ba3 Bxa3 15. Qxa3 {1-0 (25) Tratar,M (2340)-Kolar,S (2300) Slovenia 1991}) 9. Qa4+ {[%emt 0:00:30]} c6 {[%emt 0:00:30]} 10. cxd5 {[%emt 0:00:30] [#] And now Nxe4 would win.} Nxc3 {[%emt 0:00:30]} 11. bxc3 {[%emt 0:00:30]} b5 {[%emt 0:00:30]} 12. Qc2 {[%emt 0:00:30] Threatens to win with dxc6.} cxd5 {[%emt 0:00:30]} 13. a4 {[%emt 0:00:30]} Bd7 {[%emt 0:00:30]} 14. Ne5 {[%emt 0:00:30] [#] aiming for axb5.} O-O {[%emt 0:00:30]} 15. Nxd7 {[%emt 0:00:30]} (15. g4 {looks sharper.} fxg4 16. e4 bxa4 17. exd5 Nb3 18. Ra2) 15... Qxd7 {[%emt 0:00:30]} 16. axb5 {[%emt 0:00:30]} Qxb5 {[%emt 0:00:30]} 17. Bf4 {[%emt 0:00:30]} Nc4 {[%emt 0:00:30] The position is equal.} 18. Rfb1 {[%emt 0:00:30][%cal Bf1b1,Bb1b7,Bb7a7][%mdl 32]} Qc6 {[%emt 0:00:30]} 19. Qa4 {[%emt 0:00:30]} Rfc8 {[%emt 0:00:30]} 20. Qxc6 {[%emt 0:00:30]} Rxc6 {[%emt 0:00:30]} 21. Rb7 {[%emt 0:00:30][%csl LRa7,LRe7]} Bd6 {[%emt 0:00:30]} 22. Raxa7 {[%emt 0:00:30]} (22. Bxd6 {is interesting.} Nxd6 23. Re7 Re8 24. Rd7) 22... Rxa7 {[%emt 0:00:30]} 23. Rxa7 {[%emt 0:00:30]} Bxf4 {[%emt 0:00:30]} 24. gxf4 $11 {[%emt 0:00:30][%mdl 4096] Endgame KRB-KRN} Nd6 {[%emt 0:00:30]} 25. Bf3 {[%emt 0:00:30]} Rxc3 {[%emt 0:00:30]} 26. e3 {[%emt 0:00:30]} Rc6 {[%emt 0:00:30]} 27. Kg2 {[%emt 0:00:30]} Nc8 {[%emt 0:00:30]} 28. Rb7 {[%emt 0:00:30]} Kf8 {[%emt 0:00:30]} 29. Bh5 {[%emt 0:00:30]} g6 {[%emt 0:00:30]} 30. Be2 {[%emt 0:00:30]} Ne7 {[%emt 0:00:30]} 31. Bb5 {[%emt 0:00:30]} Rd6 {[%emt 0:00:30]} 32. Rb8+ {[%emt 0:00:30]} Kf7 {[%emt 0:00:30]} 33. Kf3 {[%emt 0:00:30]} h6 {[%emt 0:00:30]} 34. Ke2 {[%emt 0:00:30]} g5 {[%emt 0:00:30]} 35. fxg5 {[%emt 0:00:30]} hxg5 {[%emt 0:00:30]} 36. Kd3 {[%emt 0:00:30]} f4 {[%emt 0:00:30]} 37. exf4 {[%emt 0:00:30]} gxf4 38. h4 {[%emt 0:00:30]} Nf5 {[%emt 0:01:00]} 39. Kc3 {[%emt 0:00:30]} Nxh4 {[%emt 0:00:30]} 40. Kb4 {[%emt 0:00:30]} Ke7 {[%emt 0:00:30]} 41. Re8+ {[%emt 0:00:30]} Kf7 {[%emt 0:00:30]} 42. Kc5 {[%emt 0:00:30] Prevents Rb6.} Nf5 {[%emt 0:00:30]} 43. Ra8 {[%emt 0:00:30]} Ke7 {[%emt 0:00:30]} 44. Ra7+ {[%emt 0:00:30]} Kf6 {[%emt 0:00:30] Hoping for ...Rd8.} 45. Ra8 {[%emt 0:00:30] Prevents Rd8.} Ke7 {[%emt 0:00:30]} 46. Ra7+ {[%emt 0:00:30]} Kf6 {[%emt 0:00:30] White must now prevent ...Rd8.} 47. Ra8 {[%emt 0:00:00] Inhibits Rd8.  Weighted Error Value: White=0.03 (flawless) /Black=0.03 (flawless)} 1/2-1/2